Cogmind - Beta 14 @@@ ROGUE MODE // 2025.03.27 @ 21:12:34 Player: Leha44581 Result: Destroyed by DAS Turret with DAS Cannon Performance ------------- Evolutions (0) 0 Regions Visited (3) 600 Robots Destroyed (6) 30 Value Destroyed (169) 169 Prototype IDs (0) 0 Alien Tech Used (0) 0 Bonus (0) 0 TOTAL SCORE: 799 Bonus ------- None Cogmind --------- Core Integrity 0/250 Matter 289/300 Energy 98/250 System Corruption 1% Temperature Cool (0) Movement Treading (320) Ox2 Location -10/Exiles Parts ------- > --- POWER (1) -------- Ion Engine > --- PROPULSION (2) --- Light Treads > --- UTILITY (2) ------ High-capacity Storage Unit > --- WEAPON (2) ------- (None) > --- INVENTORY (20) --- Ion Engine Wheel High-capacity Storage Unit Medium Matter Pod (100) Large Matter Pod (150) Mini Grenade Launcher Mini Grenade Launcher Peak State ------------ > --- POWER ------------ Ion Engine > --- PROPULSION ------- Light Treads Wheel > --- UTILITY ---------- Small Storage Unit Targeting Computer > --- WEAPON ----------- Assault Rifle Assault Rifle > --- INVENTORY -------- Ion Engine Ion Engine Light Ion Engine Light Treads Wheel Medium Laser Mini Grenade Launcher Mini Grenade Launcher [Rating: 8] Favorites ----------- Power Light Ion Engine Engine Light Ion Engine Propulsion Wheel Treads Light Treads Wheel Wheel Utility Targeting Computer Storage Small Storage Unit Processor Targeting Computer Weapon Assault Rifle Ballistic Gun Assault Rifle Build | -11 -10 -10 -10 ------- Run | Yrd Mat Min Exi Slots Evolved . | . . . . Power . | . . . . Propulsion . | . . . . Utility . | . . . . Weapon . | . . . . Parts Attached 13 | 7 3 . 3 Power 3 | 1 1 . 1 Engine 3 | 1 1 . 1 Core . | . . . . Reactor . | . . . . Propulsion 4 | 3 . . 1 Treads 2 | 1 . . 1 Leg . | . . . . Wheel 2 | 2 . . . Hover . | . . . . Flight . | . . . . Utility 3 | 1 1 . 1 Device . | . . . . Storage 2 | 1 . . 1 Processor 1 | . 1 . . Hackware . | . . . . Protection . | . . . . Artifact . | . . . . Weapon 3 | 2 1 . . Energy Gun . | . . . . Energy Cannon . | . . . . Ballistic Gun 3 | 2 1 . . Ballistic Cannon . | . . . . Launcher . | . . . . Special Weapon . | . . . . Impact Weapon . | . . . . Slashing Weapon . | . . . . Piercing Weapon . | . . . . Special Melee Weapon . | . . . . Unidentified Prototypes . | . . . . Parts Lost 6 | . . . 6 Power 1 | . . . 1 Propulsion 2 | . . . 2 Utility 1 | . . . 1 Weapon 2 | . . . 2 Highest Loss Streak 6 | . . . 6 To Critical Strikes . | . . . . Average Slot Usage (%) 99 | . 98 100 99 Engine 13 | . 13 14 14 Treads 13 | . 14 14 13 Wheel 13 | . 14 14 13 Storage 14 | . 14 14 14 Processor 13 | . 13 14 13 Ballistic Gun 28 | . 28 28 28 Peak Build Rating 8 | 6 8 8 8 Average Rating 7 | 4 7 8 7 On Entrance 5 | . 6 8 8 Naked Turns . | . . . . Heaviest Build 47 | 14 14 12 47 Greatest Support 20 | 20 10 10 10 Greatest Overweight (x) 4 | . 4 1 4 Average Overweight (x) 1 | . 3 1 1 Largest Inventory Capacity 20 | 8 8 8 20 Average Capacity 9 | 7 8 8 10 Most Carried 9 | 4 8 8 9 Average Carried 7 | 2 6 8 8 Final Capacity 20 | 8 8 8 20 Final Carried 8 | 4 8 8 7 Class Distribution -------------------- 100% | Mutant Dominant Class ---------------- Mutant | -10/Materials Mutant | -10/Mines Mutant | -10/Exiles Resources | -11 -10 -10 -10 ----------- Run | Yrd Mat Min Exi Matter Collected 530 | 171 208 . 151 Remotely . | . . . . Salvage Created 208 | . 208 . . Parts 12 | . 12 . . Haulers Intercepted . | . . . . Recyclers Shooed . | . . . . Parts Field Recycled . | . . . . Retrieved Matter . | . . . . Parts Self-Destructed . | . . . . Prevented . | . . . . Kills | -11 -10 -10 -10 ------- Run | Yrd Mat Min Exi Combat Hostiles Destroyed 6 | . 6 . . Guns 6 | . 6 . . Classes Destroyed 2 | . 2 . . Swarmer 2 | . 2 . . Grunt 4 | . 4 . . Best Kill Streak 4 | . 4 . . Combat Bots Only 4 | . 4 . . Max Kills in Single Turn 1 | . 1 . . Gunslinging . | . . . . Exploded . | . . . . Melee . | . . . . Uniques/NPCs Destroyed . | . . . . Combat | -11 -10 -10 -10 -------- Run | Yrd Mat Min Exi Hostile Shots Fired 55 | . 30 . 25 Missed 15 | . 11 . 4 Damage Taken 841 | . 196 . 645 Core 258 | . 29 . 229 Absorbed by Shields . | . . . . Core Remaining (%) 100 | 100 . . . Volleys Fired 17 | . 16 . 1 Largest 2 | . 2 . 2 Hottest 40 | . 40 . 40 Shots Fired 35 | . 31 . 4 Gun 35 | . 31 . 4 Cannon . | . . . . Launcher . | . . . . Special . | . . . . Kinetic 35 | . 31 . 4 Thermal . | . . . . Explosive . | . . . . Electromagnetic . | . . . . Robot Hit Streak 15 | . 15 . . Robot Miss Streak 3 | . 1 . 3 Penetration Max . | . . . . Secondary Targets 1 | . 1 . . Max Gunslinging Chain 1 | . 1 . . Shots Hit Robots 24 | . 24 . . Core Hits 11 | . 11 . . Critical Kills . | . . . . Critical Parts Destroyed . | . . . . Critical Strikes . | . . . . Melee Attacks . | . . . . Impact . | . . . . Slashing . | . . . . Piercing . | . . . . Sneak Attacks . | . . . . Combat Hostiles . | . . . . Follow-up Attacks . | . . . . Damage Inflicted 283 | . 283 . . Guns 283 | . 283 . . Cannons . | . . . . Explosions . | . . . . Melee . | . . . . Ramming . | . . . . Kinetic 283 | . 283 . . Thermal . | . . . . Explosive . | . . . . Electromagnetic . | . . . . Impact . | . . . . Slashing . | . . . . Piercing . | . . . . Highest Corruption 1 | . 1 1 1 Average Corruption 1 | . 1 1 1 Corruption Purged . | . . . . Corruption Blocked . | . . . . Effects 7 | . 2 . 5 Message Errors 2 | . . . 2 Matter Fused 1 | . . . 1 Parts Rejected 1 | . 1 . . Misfires 2 | . . . 2 Alerts 1 | . 1 . . Overload Shots . | . . . . Overflow Damage . | . . . . Projectiles . | . . . . Explosions . | . . . . Melee . | . . . . Knockbacks . | . . . . Impact . | . . . . Kinetic . | . . . . Secondary . | . . . . Self-Inflicted Damage . | . . . . Shots . | . . . . Rammed . | . . . . Targets Rammed . | . . . . Kicked . | . . . . Crushed . | . . . . Highest Temperature 2 | . 2 . . Average Temperature 2 | . 2 . . Received Heat Transfer 72 | . 72 . . Siege Activations . | . . . . Robots Corrupted . | . . . . Combat Hostiles . | . . . . Parts Fried . | . . . . Impact Corruptions . | . . . . Robots Melted . | . . . . Combat Hostiles . | . . . . Parts Melted . | . . . . Heat Transferred . | . . . . Parts Sabotaged . | . . . . Parts Stolen . | . . . . Parts Stripped . | . . . . Power Chain Reactions . | . . . . Alert | -11 -10 -10 -10 ------- Run | Yrd Mat Min Exi Peak Influence 196 | . 196 81 . Initial 76 | . . 76 . Average 58 | . 53 80 . Maximum Alert Level . | . . . . Low Security (%) 100 | 100 100 100 . Level 1 . | . . . . Level 2 . | . . . . Level 3 . | . . . . Level 4 . | . . . . Level 5 . | . . . . High Security . | . . . . Max Security . | . . . . Squads Dispatched 3 | . 3 . . Investigation 1 | . 1 . . Extermination . | . . . . Reinforcement 2 | . 2 . . Assault . | . . . . Garrison . | . . . . Intercept . | . . . . Searches Triggered . | . . . . Construction Impeded . | . . . . Haulers Reinforced . | . . . . Active Scanning Responses . | . . . . Cargo Convoy Interrupts . | . . . . Stealth | -11 -10 -10 -10 --------- Run | Yrd Mat Min Exi Distress Signals . | . . . . Communications Jammed . | . . . . Distress Signals . | . . . . Times Spotted 19 | . 12 . 7 Peak Tracking Total 11 | . 4 . 11 Tactical Retreats 1 | . 1 . . Traps | -11 -10 -10 -10 ------- Run | Yrd Mat Min Exi Traps Triggered . | . . . . Indirectly . | . . . . Trap Hack Attempts . | . . . . Triggered . | . . . . Disarmed . | . . . . Reprogrammed . | . . . . Reused . | . . . . Traps Extracted . | . . . . Installed . | . . . . Triggered . | . . . . Machines | -11 -10 -10 -10 ---------- Run | Yrd Mat Min Exi Machines Disabled 3 | . . . 3 Max in Single Turn 2 | . . . 2 Machines Repaired . | . . . . Machines Dismantled . | . . . . Machines Sabotaged . | . . . . Overloaded Fab Kills . | . . . . Hacking | -11 -10 -10 -10 --------- Run | Yrd Mat Min Exi Machines Accessed 6 | . 2 1 3 Terminals 3 | . 2 1 . Fabricators . | . . . . Repair Stations . | . . . . Recycling Units . | . . . . Scanalyzers . | . . . . Garrison Access . | . . . . Total Hacks 30 | . 3 1 26 Successful 27 | . . 1 26 Failed 3 | . 3 . . Catastrophic 1 | . 1 . . Database Lockouts . | . . . . Manual 1 | . . . 1 Terminals 4 | . 3 1 . Fabricators . | . . . . Repair Stations . | . . . . Recycling Units . | . . . . Scanalyzers . | . . . . Garrison Access . | . . . . Terminal Hacks 27 | . . 1 26 Record 26 | . . . 26 Zone Layout 1 | . . 1 . Fabricator Hacks . | . . . . Repair Station Hacks . | . . . . Recycling Unit Hacks . | . . . . Scanalyzer . | . . . . Garrison Access Hacks . | . . . . Unauthorized Hacks . | . . . . Terminals . | . . . . Fabricators . | . . . . Repair Stations . | . . . . Recycling Units . | . . . . Scanalyzers . | . . . . Garrison Access . | . . . . Data Cores Recovered . | . . . . Used . | . . . . Hacking Detections 3 | . 2 1 . Full Trace Events 1 | . 1 . . Feedback Events 1 | . 1 . . Corruption 1 | . 1 . . Feedback Blocked . | . . . . Robot Schematics Acquired . | . . . . Robots Built . | . . . . Authchips . | . . . . Time . | . . . . Total Robot Build Rating . | . . . . Part Schematics Acquired . | . . . . Parts Built . | . . . . Authchips . | . . . . Time . | . . . . Total Part Build Rating . | . . . . Parts Repaired . | . . . . Time . | . . . . Parts Recycled . | . . . . Recycled Matter . | . . . . Retrieved Matter . | . . . . Retrieved Components . | . . . . Parts Scanalyzed . | . . . . Part Schematics Acquired . | . . . . Parts Damaged . | . . . . Bothacking | -11 -10 -10 -10 ------------ Run | Yrd Mat Min Exi Used RIF Installer . | . . . . Robots Hacked . | . . . . Non-combat . | . . . . Combat . | . . . . Robot Hacks Applied . | . . . . Relay Couplers Released . | . . . . Fabnet Peak Effective % . | . . . . Robots Rewired . | . . . . Allies Hacked . | . . . . Hacks Repelled . | . . . . Allies | -11 -10 -10 -10 -------- Run | Yrd Mat Min Exi Total Allies . | . . . . Largest Group . | . . . . Highest-Rated Group . | . . . . Highest-Rated Ally . | . . . . Total Orders . | . . . . Ally Attacks . | . . . . Total Damage . | . . . . Kills . | . . . . Allies Corrupted . | . . . . Allies Melted . | . . . . Intel | -11 -10 -10 -10 ------- Run | Yrd Mat Min Exi Robot Analysis Total . | . . . . Derelict Logs Recovered . | . . . . Drone Launches . | . . . . Drone Recoveries . | . . . . Exploration | -11 -10 -10 -10 ------------- Run | Yrd Mat Min Exi Turns Passed 1091 | 46 346 184 515 Spaces Moved 842 | 39 116 194 493 Core 88 | 1 87 . . Treads 2 | 2 . . . Legs . | . . . . Wheels 752 | 36 29 194 493 Hover . | . . . . Flight . | . . . . Fastest Speed 50 | 50 95 95 95 Average Speed 114 | 83 211 95 101 Slowest Speed 250 | 160 250 95 140 Overloaded Moves . | . . . . Propulsion Burnouts . | . . . . Robots Hopped . | . . . . Cave-ins Triggered . | . . . . Exploration Rate (%) 38 | 4 21 40 89 Regions Visited 3 Branch Regions 2 Pre-discovered Areas . | . . . . Known Exits Taken . | . . . . Unknown Exits Taken 3 | 1 1 1 . Scrap Searched . | . . . . Spaces Dug . | . . . . Terrain Destroyed . | . . . . Melee . | . . . . Projectile . | . . . . AOE . | . . . . Terrain Rammed . | . . . . Walls Destroyed . | . . . . Machines Disabled . | . . . . Actions | -11 -10 -10 -10 --------- Run | Yrd Mat Min Exi Total 932 | 50 185 193 504 Wait 45 | . 45 . . Move 839 | 38 115 193 493 Hop . | . . . . Pick Up 14 | 4 5 . 5 Fast Attach 9 | 6 2 . 1 Attach 4 | 1 1 . 2 Detach 1 | 1 . . . Swap . | . . . . Drop 3 | . 1 . 2 Fire 17 | . 16 . 1 Melee . | . . . . Ram . | . . . . Kick . | . . . . Crush . | . . . . Escape Stasis . | . . . . Rewire . | . . . . Trap . | . . . . Miscellaneous . | . . . . Route ------- -11/Scrapyard -10/Materials -10/Mines -10/Exiles (discovered 1 exit: [*Min]) History --------- Turn | Location | Event 12 | -11/Scrapyard | Discovered new exit (range 14) 47 | -11/Scrapyard | Entered Materials 303 | -10/Materials | Build established: Mutant 368 | -10/Materials | Discovered new exit (range 11) 393 | -10/Materials | Entered Mines 573 | -10/Mines | Deemed a non-threat by the Exiles lab entrance 573 | -10/Mines | Discovered new exit (range 5) 577 | -10/Mines | Entered Exiles 600 | -10/Exiles | Met 8R-AWN 617 | -10/Exiles | Met EX-HEX 643 | -10/Exiles | Met EX-BIN 768 | -10/Exiles | Met EX-DEC 823 | -10/Exiles | Visited The Gauntlet 1011 | -10/Exiles | Discovered new exit (range 10) 1075 | -10/Exiles | Attacked by the Exiles 1081 | -10/Exiles | Core integrity fell below 50% 1091 | -10/Exiles | Core integrity fell below 20% 1092 | -10/Exiles | Destroyed by DAS Turret with DAS Cannon Last Messages --------------- 01075_ System corrupted: FCS attempts to trigger Assault Rifle. 01075_ System corrupted: Assault Rifle misfires. 01075_ EXILES: Hostile robot within lab perimeter. Defensive protocols time, folks! 01077_ EX-DEC: "Let's see what this bad boy can do..." 01077_ EX-DEC deploys DAS Turret. 01080_ Knocked back. 01082_ Lgt. Ion Engine destroyed. 01083_ EX-BIN: "I just want to science!" 01084_ Knocked back. 01086_ Acquired 2 matter. 01086_ Wheel destroyed. 01086_ Lgt. Treads destroyed. 01088_ Knocked back. 01088_ Targeting Computer destroyed. 01088_ Critical hit (Blast). 01089_ Machine disabled. 01090_ Assault Rifle destroyed. Map ----- +----------------------------------------------------+ | ?????????????????????#" #?????????????? | | ?????????????????????#" ## #?????????????? | | ?????????????????????#""""""## #??#####??????? | | ?????????????????????##"###### #?#""""""?????? | | ????????????????????? "?????# #?#"""""""#???? | | ????????????????????"""??????# #?#"""""""#???? | | ????????????????????"""?????## ###"" """"#???? | | ###?????????????????????????#" """"#???? | | "#?????????????????????????#" """#???? | | "#?????????????????????????#" """#???? | | "#?????????????????????????#" """#???? | | ""#??????????########???????#" """#???? | | ""#??????????# """#???????#" """##??? | | ""#??????????#"" """#???????## """""??? | | ###??????????#"" #????????# """##??? | | #????????????#"" #????????#" "X" """""??? | | ##???????????#"" "#????????#" """ # ??? | | "#???????????# ""#????????#" """""""""#???? | | ###?????????#"" ""#???????##" ###########???? | | ##????????### ###??????##"" #?????????????? | | ######???### ###?######"" #?????????????? | | """#####X# #"###""""""" ##????????????? | | """""" " "" ##???######### | | "" """ % " #####"""""""" | | # " " % " """ "" | | ### @ "" " | | ??### % aa " | | ????## a | | ?????## a | | ??????##" | | ???????#""" """" aa | | ??????##" ######""" | | ??????#"" ""##????#####"" | | ??????#""" """##?????????##""" | | ?????#""" """##???????????#"""" | | ?????#""" ""#????????????#"" | | ?????#"" ###?####?????#"""" | | ?????#""" ## ###??"" | | ?????#"" """" | | ?????##"" | | ??????#"""" | | ??????## " | | ???????#" " "" """ | | ???????#"""" ""## ##""" " " ""#" | | ???????#"" ""###?????####""" """##"" | | ???????#" """"##??????????###""""#?### | | ???????#""" """#?????????????####?????? | | ???????## ""##??????????????????????? | | ????????#"" """##???????????????????????? | | ????????##""" ##????????????????????????? | +----------------------------------------------------+ Best States ------------- Heat Dissipation 25 Energy Generation 10 Energy Capacity 250 Matter Stores 300 Matter Capacity 300 Sight Range 16 Terrain Scan Density 10 Evasion (%) 44 Targeting Accuracy 5 Item Schematics ----------------- None Robot Schematics ------------------ None Fabricated ------------ Nothing Alien Tech Used ----------------- None Achievements -------------- None Challenges ------------ None Game ------ Seed AntigravStormArchive Manual? 0 Play Time 00:09:18 Cumulative 11.5 hours Start 2025.03.27 @ 21:03:41 End 2025.03.27 @ 21:12:34 Sessions 1 Manual Loads 0 Difficulty Rogue Special Mode None Game No. 21 Rogue 21 Adventurer 0 Explorer 0 Win Type - Total 0 Types 0/0/0/0/0/0/0/0/0 Lore% 11 Gallery% 19 Achievement% 15 Wizard Run 0 Options --------- Layout 2 ASCII 0 Keyboard 1 Movement Numpad Keybinds 0 Fullscreen 2 Font 20/SmallcapsGlow Map View 54x51 Zoom Use 0% Tactical HUD 1 Map Filters NONE Filters NONE Steam 1 RUN: 125e4cb9-0f17-42c4-a1ad-764e352c5641